[Event "Germany Countries-chT Youth 2022"]
[Site "Wiesbaden"]
[Date "2022.10.03"]
[Round "6"]
[White "Kieselbach, Jannik"]
[Black "Mader, Fabian"]
[Result "1-0"]
[ECO "B33"]
[WhiteElo "1848"]
[BlackElo "1735"]
[Annotator "NA RC COMBH"]
[PlyCount "105"]
[EventDate "2022.09.28"]
[EventType "team-tourn"]
[EventRounds "7"]
[EventCountry "GER"]
[SourceTitle "playchess.com"]
[Source "ChessBase"]
[SourceQuality "1"]
[TimeControl "40/5400+30:1800+30"]

1. e4 {[%emt 0:00:04]} c5 {[%emt 0:00:07]} 2. Nf3 {[%emt 0:00:05]} Nc6 {[%emt 0:00:04]} 3. d4 {[%emt 0:00:05]} cxd4 {[%emt 0:00:04]} 4. Nxd4 {[%emt 0:00:06]} Nf6 {[%emt 0:00:05]} 5. Nc3 {[%emt 0:00:08]} e5 {[%emt 0:00:05]} 6. Ndb5 {[%emt 0:00:18]} d6 {[%emt 0:00:09]} 7. Bg5 {[%emt 0:00:18]} a6 {[%emt 0:00:07]} 8. Na3 {[%emt 0:00:13]} b5 {[%emt 0:00:07]} 9. Nd5 {[%emt 0:00:20]} Be7 {[%emt 0:00:07]} 10. Bxf6 {[%emt 0:00:10]} Bxf6 {[%emt 0:00:05]} 11. c3 {[%emt 0:00:12]} Bg5 {[%emt 0:00:13]} 12. Nc2 {[%emt 0:00:06]} O-O {[%emt 0:00:13]} 13. a4 {[%emt 0:00:16]} bxa4 {[%emt 0:00:09]} 14. Rxa4 {[%emt 0:00:30]} a5 {[%emt 0:00:16]} 15. Bc4 {[%emt 0:00:17]} Rb8 {[%emt 0:00:14]} 16. b4 {[%emt 0:00:34]} axb4 {[%emt 0:14:26]} 17. cxb4 {[%emt 0:01:32]} Kh8 {[%emt 0:01:57]} 18. b5 {[%emt 0:01:19]} Ne7 {[%emt 0:01:32]} 19. Ncb4 {[%emt 0:10:07]} Bd7 {[%emt 0:12:25]} 20. Nxe7 {[%emt 0:04:13]} Bxe7 {[%emt 0:02:51]} 21. Nc6 {[%emt 0:01:09]} Bxc6 {[%emt 0:00:57]} 22. bxc6 {[%emt 0:00:08]} Qb6 {[%emt 0:02:28]} 23. Bd5 {[%emt 0:02:18]} f5 {[%emt 0:05:50]} 24. exf5 {[%emt 0:01:47]} Rxf5 {[%emt 0:00:37]} 25. O-O {[%emt 0:01:32]} Rbf8 {[%emt 0:02:20]} 26. Qc2 {[%emt 0:01:54]} Bd8 {[%emt 0:12:15]} 27. g3 {[%emt 0:09:19]} Qc7 {[%emt 0:17:59]} 28. Be4 {[%emt 0:19:17]} Rh5 {[%emt 0:04:01]} 29. Rb1 {[%emt 0:01:08]} Qc8 {[%emt 0:02:59]} 30. Ra7 {[%emt 0:07:42]} Qh3 {[%emt 0:09:29]} 31. f3 {[%emt 0:03:01]} Bg5 {[%emt 0:01:31]} 32. Re1 {[%emt 0:02:17]} Qe6 {[%emt 0:07:06]} 33. c7 {[%emt 0:04:25]} d5 {[%emt 0:03:05]} 34. Bxd5 {[%emt 0:23:41]} Qb6+ {[%emt 0:00:16]} 35. Qf2 {[%emt 0:00:45]} Qxf2+ 36. Kxf2 {[%emt 0:00:06]} Rxh2+ {[%emt 0:01:03]} 37. Kg1 {[%emt 0:00:46]} Rc2 {[%emt 0:00:29]} 38. Rxe5 {[%emt 0:01:36]} Bf6 {[%emt 0:00:37]} 39. Re4 {[%emt 0:01:17]} Bd8 {[%emt 0:00:44]} 40. cxd8=Q {[%emt 0:02:24]} Rxd8 {[%emt 0:00:04]} 41. Ra8 {[%emt 0:30:51]} Rxa8 {[%emt 0:01:48]} 42. Bxa8 {[%emt 0:00:00]} g6 43. Re7 Rb2 {[%emt 0:04:08]} 44. Be4 {[%emt 0:00:00]} Rb6 {[%emt 0:03:15]} 45. Rc7 {[%emt 0:00:00]} h6 {[%emt 0:02:09]} 46. Rc6 {[%emt 0:00:00]} Rxc6 {[%emt 0:00:20]} 47. Bxc6 {[%emt 0:00:00]} Kg7 {[%emt 0:00:12]} 48. f4 {[%emt 0:00:00]} Kf6 {[%emt 0:02:13]} 49. Kf2 {[%emt 0:00:00]} h5 {[%emt 0:00:43]} 50. Kf3 {[%emt 0:00:00]} g5 {[%emt 0:00:31]} 51. fxg5+ {[%emt 0:00:00]} Kxg5 {[%emt 0:00:11]} 52. Bd7 {[%emt 0:00:00]} Kf6 {[%emt 0:00:51]} 53. Kg2 {[%emt 0:00:00]} 1-0

[Event "Germany Countries-chT Youth 2022"]
[Site "Wiesbaden"]
[Date "2022.10.03"]
[Round "6"]
[White "Uhlmann, Tim"]
[Black "Campora, Daniel H."]
[Result "1/2-1/2"]
[ECO "B10"]
[WhiteElo "1841"]
[BlackElo "2330"]
[Annotator "TA"]
[PlyCount "75"]
[EventDate "2022.09.28"]
[EventType "team-tourn"]
[EventRounds "7"]
[EventCountry "GER"]
[SourceTitle "playchess.com"]
[Source "ChessBase"]
[SourceQuality "1"]
[TimeControl "40/5400+30:1800+30"]

{[%evp 11,75,10,14,11,0,0,0,0,-10,-15,-16,0,0,-22,13,0,0,-11,-7,-8,-12,-1,-18,-18,-10,-62,-64,-176,0,0,-1,-22,0,0,0,-7,-7,-91,-91,-90,0,0,0,0,205,205,205,205,205,29,301,301,301,265,290,275,264,260,577,352,362,40,40,41,41,23]} 1. e4 {[%emt 0:00:02]} c6 {[%emt 0:00:13]} 2. c4 {[%emt 0:00:05]} d5 {[%emt 0:00:04]} 3. exd5 {[%emt 0:00:04]} cxd5 {[%emt 0:00:04]} 4. cxd5 {[%emt 0:00:06]} Nf6 {[%emt 0:00:03]} 5. Nc3 {[%emt 0:00:08]} Nxd5 {[%emt 0:00:05]} 6. Nf3 {[%emt 0:00:10]} Nc6 {[%emt 0:00:05]} 7. Bb5 {[%emt 0:00:06] B10: Caro-Kann: 2 d3 and 2 c4.} e6 {[%emt 0:00:05]} 8. O-O {[%emt 0:00:12]} Bd6 {[%emt 0:00:07]} 9. Nxd5 {[%emt 0:00:40] The position is equal.} exd5 {[%emt 0:00:03]} 10. Re1+ {[%emt 0:00:06]} Be6 {[%emt 0:00:05]} 11. d4 {[%emt 0:00:23]} O-O {[%emt 0:01:14] [#]} 12. Bd3 $146 {[%emt 0:00:25][%cal Od3h7]} ({Predecessor:} 12. Bg5 Qb6 13. Bxc6 bxc6 14. Qc2 Rfe8 15. Rac1 f6 16. Be3 Rac8 17. a3 Bg4 18. Nh4 {0-1 (36) Penman,A-Zaas,P ICCF email 2011}) 12... h6 {[%emt 0:01:57]} 13. Bb1 {[%emt 0:03:41] Black must now prevent Qd3.} Bg4 {[%emt 0:33:04]} (13... Nb4 $2 14. a3 $18) 14. Qd3 {[%emt 0:01:26][%csl Gb1][%cal Rd3h7]} g6 $1 {[%emt 0:26:05]} (14... f5 15. Ne5 $14) 15. Bxh6 {[%emt 0:25:45]} Bxf3 {[%emt 0:00:15]} 16. Qxf3 {[%emt 0:00:07]} Qh4 $1 {[%emt 0:01:23]} 17. Qh3 {[%emt 0:00:21] [#]} ({Wrong is} 17. Bxf8 $2 Qxh2+ 18. Kf1 Qh1+ 19. Ke2 Re8+ 20. Be4 Qh4 $19) 17... Rfe8 $1 $40 {[%emt 0:04:41][%mdl 128] Black attacks.} 18. Rxe8+ {[%emt 0:00:46]} ({White should play} 18. Rd1 $11 Qxh3 19. gxh3) (18. Be3 Qxh3) 18... Rxe8 $15 {[%emt 0:00:01][%cal Re8e1]} 19. Be3 {[%emt 0:00:13] [#]} (19. Bd2 $15 Qxh3 20. gxh3) 19... Qxh3 $2 {[%emt 0:00:55]} ({Black should try} 19... Rxe3 $1 $19 {[%mdl 512]} 20. Qxe3 Qxh2+ 21. Kf1 Qh1+ 22. Ke2 Kg7) 20. gxh3 $11 {[%emt 0:00:08]} f5 {[%emt 0:00:33][%cal Bf7f5,Bf5f4][%mdl 32]} 21. Bd3 {[%emt 0:08:16]} f4 {[%emt 0:02:28]} (21... Nb4 $5 {[%cal Rb4d3]} 22. Bb5 Re4 $11) 22. Bd2 {[%emt 0:00:39]} ({Not} 22. Bxg6 $2 Re7 23. Bxf4 (23. Bd2 $2 Rg7 $19) 23... Bxf4 $19) 22... Nxd4 {[%emt 0:00:34] Strongly threatening ...Nf3+.} 23. Bc3 {[%emt 0:01:35] A strong pair of Bishops.} ({Don't blunder} 23. Bxg6 $2 Nf3+ 24. Kh1 Re6 $19) 23... Ne2+ {[%emt 0:01:37]} 24. Bxe2 {[%emt 0:00:05]} (24. Kg2 $11 {remains equal.}) 24... Rxe2 {[%emt 0:00:05][%mdl 4096] Endgame KRB-KRB} 25. Rd1 {[%emt 0:00:24]} Bc5 {[%emt 0:00:29]} (25... f3 $1 $17 26. Rxd5 Rc2 $1) 26. Rxd5 {[%emt 0:00:44]} Bb6 {[%emt 0:00:12]} 27. Rd2 {[%emt 0:04:19]} Bxf2+ $2 {[%emt 0:04:15]} (27... Rxd2 $1 $11 28. Bxd2 f3) 28. Kg2 $18 {[%emt 0:02:16]} Rxd2 {[%emt 0:00:34]} 29. Bxd2 {[%emt 0:00:04] KB-KB} Bd4 {[%emt 0:00:05] [#]} 30. b3 {[%emt 0:00:16]} g5 $2 {[%emt 0:00:20][%mdl 8192]} (30... Kf7 $1 $11 {and Black is okay.}) 31. h4 {[%emt 0:00:15]} gxh4 {[%emt 0:01:17]} 32. Bxf4 {[%emt 0:00:23]} Bf6 {[%emt 0:00:12]} 33. Kh3 {[%emt 0:01:06]} Kg7 {[%emt 0:00:11]} 34. Be3 {[%emt 0:00:18]} Kg6 $2 {[%emt 0:00:18]} (34... a6 {is tougher.} 35. Bf2 Be7 36. Bxh4 Ba3) 35. Bxa7 {[%emt 0:00:12]} Kh5 {[%emt 0:00:11]} 36. b4 $2 {[%emt 0:01:26]} (36. a4 $18) 36... b5 $1 $14 {[%emt 0:00:58]} 37. Bc5 {[%emt 0:00:59]} Bd8 {[%emt 0:01:23]} 38. Bf2 {[%emt 0:08:20] Weighted Error Value: White=0.33/Black=0.46} 1/2-1/2

[Event "Germany Countries-chT Youth 2022"]
[Site "Wiesbaden"]
[Date "2022.10.03"]
[Round "6"]
[White "Semling, Julius"]
[Black "Tovmasyan, Minas"]
[Result "1-0"]
[ECO "B41"]
[WhiteElo "1823"]
[BlackElo "1838"]
[Annotator "NA RC COMBH"]
[PlyCount "51"]
[EventDate "2022.09.28"]
[EventType "team-tourn"]
[EventRounds "7"]
[EventCountry "GER"]
[SourceTitle "playchess.com"]
[Source "ChessBase"]
[SourceQuality "1"]
[TimeControl "40/5400+30:1800+30"]

1. e4 {[%emt 0:00:02]} c5 {[%emt 0:00:18]} 2. Nf3 {[%emt 0:00:01]} e6 {[%emt 0:00:09]} 3. d4 {[%emt 0:00:05]} cxd4 {[%emt 0:00:06]} 4. Nxd4 {[%emt 0:00:04]} a6 {[%emt 0:00:37]} 5. c4 {[%emt 0:00:13]} Nf6 {[%emt 0:01:09]} 6. Nc3 {[%emt 0:00:24]} Qc7 {[%emt 0:00:07]} 7. a3 {[%emt 0:00:52]} b6 {[%emt 0:00:11]} 8. f4 {[%emt 0:02:07]} d6 {[%emt 0:01:02]} 9. Bd3 {[%emt 0:02:17]} Bb7 {[%emt 0:00:36]} 10. Qe2 {[%emt 0:01:47]} Be7 {[%emt 0:02:31]} 11. O-O {[%emt 0:02:37]} Nbd7 {[%emt 0:02:51]} 12. Kh1 {[%emt 0:03:14]} Rc8 {[%emt 0:03:00]} 13. Bd2 {[%emt 0:05:54]} h5 {[%emt 0:05:27]} 14. Rae1 {[%emt 0:02:37]} h4 {[%emt 0:01:37]} 15. Nf3 {[%emt 0:22:01]} Kf8 {[%emt 0:27:11]} 16. Ng5 {[%emt 0:09:40]} Nh5 {[%emt 0:07:41]} 17. f5 {[%emt 0:10:46]} exf5 {[%emt 0:18:46]} 18. Nd5 {[%emt 0:07:08]} Bxd5 {[%emt 0:02:51]} 19. exd5 {[%emt 0:00:07]} Bxg5 {[%emt 0:02:27]} 20. Bxg5 {[%emt 0:00:42]} Ne5 {[%emt 0:01:34]} 21. Bxf5 {[%emt 0:03:08]} Ra8 {[%emt 0:07:02]} 22. b3 {[%emt 0:03:33]} b5 {[%emt 0:03:31]} 23. cxb5 {[%emt 0:03:43]} axb5 {[%emt 0:01:49]} 24. Qxb5 {[%emt 0:00:17]} Ra5 {[%emt 0:03:33]} 25. Qb4 {[%emt 0:01:19]} Rc5 {[%emt 0:05:51]} 26. Rxe5 {[%emt 0:02:07]} 1-0

[Event "Germany Countries-chT Youth 2022"]
[Site "Wiesbaden"]
[Date "2022.10.03"]
[Round "6"]
[White "Trunz, Michelle"]
[Black "Guo, Philipp Ziming"]
[Result "1-0"]
[ECO "E44"]
[WhiteElo "1821"]
[BlackElo "1851"]
[Annotator "NA RC COMBH"]
[PlyCount "107"]
[EventDate "2022.09.28"]
[EventType "team-tourn"]
[EventRounds "7"]
[EventCountry "GER"]
[SourceTitle "playchess.com"]
[Source "ChessBase"]
[SourceQuality "1"]
[TimeControl "40/5400+30:1800+30"]

1. d4 {[%emt 0:00:02]} Nf6 {[%emt 0:00:08]} 2. c4 {[%emt 0:00:05]} e6 {[%emt 0:00:07]} 3. Nc3 {[%emt 0:00:10]} Bb4 {[%emt 0:00:13]} 4. e3 {[%emt 0:00:13]} b6 {[%emt 0:00:16]} 5. Nge2 {[%emt 0:00:18]} c5 {[%emt 0:00:36]} 6. a3 {[%emt 0:02:24]} Ba5 {[%emt 0:00:09]} 7. Bd2 {[%emt 0:02:52]} O-O {[%emt 0:04:01]} 8. Rb1 {[%emt 0:02:54]} Qe7 {[%emt 0:03:20]} 9. Ng3 {[%emt 0:08:15]} cxd4 {[%emt 0:16:46]} 10. exd4 {[%emt 0:00:12]} Bxc3 {[%emt 0:00:13]} 11. Bxc3 {[%emt 0:00:17]} Nc6 {[%emt 0:01:19]} 12. Bd3 {[%emt 0:03:33]} d5 {[%emt 0:03:16]} 13. O-O {[%emt 0:00:46]} Rd8 {[%emt 0:04:53]} 14. Re1 {[%emt 0:06:18]} Ba6 {[%emt 0:04:44]} 15. Qa4 {[%emt 0:05:23]} dxc4 {[%emt 0:03:22]} 16. Bxh7+ {[%emt 0:03:45]} Nxh7 {[%emt 0:03:42]} 17. Qxa6 {[%emt 0:01:17]} Rac8 {[%emt 0:03:52]} 18. d5 {[%emt 0:07:45]} Nb8 {[%emt 0:01:00]} 19. Qb5 {[%emt 0:02:41]} Rc5 {[%emt 0:03:01]} 20. Qa4 {[%emt 0:01:03]} b5 {[%emt 0:03:41]} 21. Qc2 {[%emt 0:00:36]} Rcxd5 {[%emt 0:02:02]} 22. Nf5 {[%emt 0:02:32]} Qg5 {[%emt 0:02:42]} 23. Nxg7 {[%emt 0:03:53]} Nf6 {[%emt 0:03:17]} 24. Nxe6 {[%emt 0:16:30]} fxe6 {[%emt 0:00:07]} 25. Rxe6 {[%emt 0:02:37]} Nbd7 {[%emt 0:07:52]} 26. Rbe1 {[%emt 0:08:17]} Kf7 {[%emt 0:08:30]} 27. Re7+ {[%emt 0:03:33]} Kf8 {[%emt 0:00:01]} 28. Qe2 {[%emt 0:01:31]} Qg6 {[%emt 0:08:49]} 29. Qe6 {[%emt 0:04:15]} Qg8 {[%emt 0:05:51]} 30. Bxf6 {[%emt 0:01:54]} Qxe6 {[%emt 0:00:02]} 31. R7xe6 {[%emt 0:00:13]} Nxf6 {[%emt 0:00:15]} 32. Rxf6+ {[%emt 0:00:03]} Kg7 {[%emt 0:00:05]} 33. Ra6 {[%emt 0:02:29]} Rd2 {[%emt 0:00:06]} 34. Rxa7+ {[%emt 0:00:08]} Kf6 {[%emt 0:00:16]} 35. a4 {[%emt 0:00:43]} Rxb2 {[%emt 0:00:45]} 36. axb5 {[%emt 0:02:05]} c3 {[%emt 0:00:10]} 37. Raa1 {[%emt 0:01:03]} Rdd2 {[%emt 0:01:23]} 38. Rf1 {[%emt 0:00:52]} Rxb5 {[%emt 0:01:13]} 39. Rac1 {[%emt 0:00:25]} c2 {[%emt 0:00:34]} 40. g3 {[%emt 0:00:18]} Re5 {[%emt 0:01:49]} 41. Kg2 {[%emt 0:30:45]} Kf5 {[%emt 0:32:36]} 42. h3 {[%emt 0:00:56]} Re4 {[%emt 0:02:07]} 43. Ra1 {[%emt 0:03:42]} Red4 {[%emt 0:01:17]} 44. Ra5+ {[%emt 0:01:10]} Kg6 {[%emt 0:00:00]} 45. Rc5 {[%emt 0:00:00]} Re4 {[%emt 0:00:00]} 46. Rc6+ {[%emt 0:00:00]} Kg5 $2 {[%emt 0:00:00]} (46... Kf5 $16 {keeps fighting.} 47. h4 (47. Rc1 Ree2 $14) 47... Re3) 47. Ra1 {[%emt 0:00:00]} Re5 {[%emt 0:00:00]} 48. Ra4 {[%emt 0:00:00]} Kf5 {[%emt 0:00:00]} 49. g4+ $2 {[%emt 0:00:00]} (49. Rf4+ {mates} Kg5 50. h4+ Kh5 51. Kh3 Rd3 52. f3 Re6 53. Rxe6 Rxf3 54. Rxf3 c1=Q 55. g4#) 49... Kg5 {[%emt 0:00:00]} 50. Kg3 {[%emt 0:00:00]} Re6 {[%emt 0:00:00]} 51. Rxe6 {[%emt 0:00:00]} Rd3+ {[%emt 0:00:00]} 52. f3 {[%emt 0:00:00]} Rxf3+ {[%emt 0:00:00]} 53. Kxf3 {[%emt 0:00:00]} c1=Q {[%emt 0:00:00]} 54. Ra5+ {[%emt 0:00:00]} 1-0

[Event "Germany Countries-chT Youth 2022"]
[Site "Wiesbaden"]
[Date "2022.10.03"]
[Round "6"]
[White "Wunderlich, Elias"]
[Black "Buchinger, Alexis"]
[Result "1-0"]
[ECO "A05"]
[WhiteElo "1815"]
[BlackElo "1786"]
[Annotator "NA RC COMBH"]
[PlyCount "83"]
[EventDate "2022.09.28"]
[EventType "team-tourn"]
[EventRounds "7"]
[EventCountry "GER"]
[SourceTitle "playchess.com"]
[Source "ChessBase"]
[SourceQuality "1"]
[TimeControl "40/5400+30:1800+30"]

1. Nf3 {[%emt 0:00:02]} Nf6 {[%emt 0:00:36]} 2. g3 {[%emt 0:00:08]} g6 {[%emt 0:00:11]} 3. Bg2 {[%emt 0:00:06]} Bg7 {[%emt 0:00:06]} 4. O-O {[%emt 0:00:26]} O-O {[%emt 0:00:07]} 5. d4 {[%emt 0:01:23]} c6 {[%emt 0:00:40]} 6. c4 {[%emt 0:01:03]} d6 {[%emt 0:00:15]} 7. Qb3 {[%emt 0:10:27]} Qc7 {[%emt 0:06:16]} 8. h3 {[%emt 0:05:45]} h5 {[%emt 0:01:42]} 9. Be3 {[%emt 0:02:17]} Bf5 {[%emt 0:18:06]} 10. Rd1 {[%emt 0:02:56]} d5 {[%emt 0:04:21]} 11. Bf4 Qc8 {[%emt 0:04:16]} 12. Kh2 {[%emt 0:03:40]} dxc4 {[%emt 0:06:29]} 13. Qxc4 {[%emt 0:00:04]} Ne4 {[%emt 0:01:02]} 14. Ng5 {[%emt 0:06:44]} Nxg5 {[%emt 0:13:58]} 15. Bxg5 {[%emt 0:00:02]} e5 {[%emt 0:00:17]} 16. dxe5 {[%emt 0:13:10]} Bxe5 {[%emt 0:00:26]} 17. Nc3 {[%emt 0:00:06]} Na6 {[%emt 0:03:14]} 18. f4 {[%emt 0:08:04]} Be6 {[%emt 0:10:49]} 19. Qd3 {[%emt 0:04:17]} Bc7 {[%emt 0:02:03]} 20. Ne4 {[%emt 0:02:50]} Bd8 {[%emt 0:02:35]} 21. Bh6 {[%emt 0:03:25]} Be7 {[%emt 0:05:54]} 22. Qc3 {[%emt 0:04:30]} f6 {[%emt 0:00:26]} 23. Bxf8 {[%emt 0:01:37]} Qxf8 {[%emt 0:00:06]} 24. Qe3 {[%emt 0:01:17]} Qf7 {[%emt 0:00:56]} 25. Nd6 {[%emt 0:01:29]} Bxd6 {[%emt 0:00:07]} 26. Rxd6 {[%emt 0:00:01]} Nc7 {[%emt 0:00:27]} 27. Rad1 {[%emt 0:04:42]} Bd5 {[%emt 0:00:42]} 28. Qc3 {[%emt 0:01:10]} Rf8 {[%emt 0:00:50]} 29. Qc5 {[%emt 0:02:56]} f5 {[%emt 0:05:30]} 30. R6xd5 {[%emt 0:12:55]} cxd5 {[%emt 0:01:39]} 31. Rc1 {[%emt 0:00:21]} Na6 {[%emt 0:04:02]} 32. Qxd5 {[%emt 0:00:53]} Re8 {[%emt 0:01:23]} 33. Qb5 {[%emt 0:02:12]} Qe7 {[%emt 0:01:50]} 34. Rc2 {[%emt 0:01:16]} Rb8 {[%emt 0:03:31]} 35. Rd2 {[%emt 0:01:49]} Nc5 {[%emt 0:02:27]} 36. b4 {[%emt 0:00:57]} Ne4 {[%emt 0:00:32]} 37. Rd7 {[%emt 0:00:40]} Qe8 {[%emt 0:00:31]} 38. Qd5+ {[%emt 0:00:26]} Kf8 {[%emt 0:00:13]} 39. Qd4 {[%emt 0:02:05]} Qe6 {[%emt 0:00:46]} 40. Bxe4 {[%emt 0:00:55]} fxe4 {[%emt 0:00:19]} 41. Qh8+ {[%emt 0:30:17]} Qg8 {[%emt 0:01:13]} 42. Qf6+ {[%emt 0:00:00]} 1-0

[Event "Germany Countries-chT Youth 2022"]
[Site "Wiesbaden"]
[Date "2022.10.03"]
[Round "6"]
[White "Nizamova, Rita"]
[Black "Vranckx, Oscar"]
[Result "0-1"]
[ECO "B21"]
[WhiteElo "1813"]
[BlackElo "1583"]
[Annotator "NA RC COMBH"]
[PlyCount "125"]
[EventDate "2022.09.28"]
[EventType "team-tourn"]
[EventRounds "7"]
[EventCountry "GER"]
[SourceTitle "playchess.com"]
[Source "ChessBase"]
[SourceQuality "1"]
[TimeControl "40/5400+30:1800+30"]

1. e4 {[%emt 0:00:01]} c5 {[%emt 0:00:06]} 2. d4 {[%emt 0:00:03]} cxd4 3. c3 e5 {[%emt 0:00:15]} 4. Nf3 {[%emt 0:01:50]} Nc6 {[%emt 0:00:06]} 5. Bc4 {[%emt 0:01:51]} Nf6 {[%emt 0:01:22]} 6. O-O {[%emt 0:02:33]} Bc5 {[%emt 0:00:16]} 7. cxd4 {[%emt 0:02:21]} Bxd4 {[%emt 0:00:39]} 8. Nxd4 {[%emt 0:00:11]} Nxd4 {[%emt 0:00:18]} 9. Be3 {[%emt 0:03:35]} Ne6 {[%emt 0:00:36]} 10. Bxe6 {[%emt 0:04:14]} dxe6 {[%emt 0:00:09]} 11. Qc2 {[%emt 0:02:42]} Bd7 {[%emt 0:00:22]} 12. Nc3 {[%emt 0:01:25]} O-O {[%emt 0:00:15]} 13. Bc5 {[%emt 0:02:06]} Re8 {[%emt 0:00:05]} 14. Rfd1 {[%emt 0:03:04]} Rc8 {[%emt 0:01:08]} 15. Bd6 {[%emt 0:08:26]} Qa5 {[%emt 0:00:27]} 16. Qe2 {[%emt 0:11:12]} b5 {[%emt 0:00:56]} 17. a3 {[%emt 0:06:27]} Bc6 {[%emt 0:01:01]} 18. b4 {[%emt 0:04:21]} Qb6 {[%emt 0:00:54]} 19. Bc5 {[%emt 0:03:56]} Qb7 {[%emt 0:00:15]} 20. f3 {[%emt 0:01:36]} Nh5 {[%emt 0:01:12]} 21. Qe3 {[%emt 0:02:09]} Nf4 {[%emt 0:00:38]} 22. Bxa7 {[%emt 0:05:11]} f5 {[%emt 0:01:18]} 23. Bc5 {[%emt 0:01:31]} Qf7 {[%emt 0:00:19]} 24. Qe1 {[%emt 0:05:45]} Red8 {[%emt 0:00:54]} 25. exf5 {[%emt 0:03:19]} Qxf5 {[%emt 0:00:13]} 26. Ne4 {[%emt 0:07:54]} Qg6 {[%emt 0:01:12]} 27. Ng3 {[%emt 0:03:06]} Qc2 {[%emt 0:00:55]} 28. Bf2 {[%emt 0:04:41]} Bxf3 {[%emt 0:00:58]} 29. Rxd8+ {[%emt 0:04:10]} Rxd8 {[%emt 0:00:06]} 30. gxf3 {[%emt 0:00:12]} Nh3+ {[%emt 0:00:03]} 31. Kf1 {[%emt 0:01:31]} Rd2 {[%emt 0:00:13]} 32. Ne4 {[%emt 0:02:23]} Qd3+ {[%emt 0:00:45]} 33. Kg2 {[%emt 0:00:07]} Nf4+ {[%emt 0:00:12]} 34. Kg3 {[%emt 0:00:31]} Rc2 {[%emt 0:05:15]} 35. Rd1 {[%emt 0:01:56]} Ne2+ {[%emt 0:01:07]} 36. Kg4 {[%emt 0:01:01]} h5+ {[%emt 0:00:09]} 37. Kxh5 {[%emt 0:01:01]} Qxf3+ {[%emt 0:00:06]} 38. Kg5 {[%emt 0:00:00]} Qf5+ {[%emt 0:00:00]} 39. Kh4 {[%emt 0:00:00]} g5+ {[%emt 0:00:00]} 40. Nxg5 {[%emt 0:00:00]} Rc4+ {[%emt 0:00:00]} 41. Bd4 {[%emt 0:05:39]} Nxd4 {[%emt 0:01:34]} 42. Kh5 {[%emt 0:00:17]} Nf3 {[%emt 0:01:03]} 43. Rd8+ {[%emt 0:03:05]} Kg7 {[%emt 0:00:08]} 44. Rd7+ {[%emt 0:04:50]} Kf8 {[%emt 0:00:05]} 45. Qg3 {[%emt 0:05:40]} Ke8 {[%emt 0:00:04]} 46. Rf7 {[%emt 0:06:48]} Qxg5+ {[%emt 0:00:07]} 47. Qxg5 {[%emt 0:00:14]} Nxg5 {[%emt 0:00:05]} 48. Rb7 {[%emt 0:00:33]} Nf3 {[%emt 0:00:21]} 49. Kg6 {[%emt 0:00:37]} Nd4 {[%emt 0:00:33]} 50. h4 {[%emt 0:00:39]} Nf5 {[%emt 0:00:52]} 51. h5 {[%emt 0:00:30]} e4 {[%emt 0:00:27]} 52. Rxb5 {[%emt 0:00:51]} e3 {[%emt 0:00:28]} 53. Re5 {[%emt 0:00:11]} Ke7 {[%emt 0:00:09]} 54. h6 {[%emt 0:01:18]} Rg4+ {[%emt 0:00:16]} 55. Kh5 {[%emt 0:00:35]} Rh4+ {[%emt 0:00:06]} 56. Kg5 {[%emt 0:00:01]} Rxh6 {[%emt 0:00:14]} 57. b5 {[%emt 0:02:05]} Rh2 {[%emt 0:00:08]} 58. a4 {[%emt 0:00:56]} Rg2+ {[%emt 0:00:26]} 59. Kf4 {[%emt 0:00:47]} Kd6 {[%emt 0:00:17]} 60. b6 {[%emt 0:03:19]} Rb2 {[%emt 0:00:25]} 61. Re4 {[%emt 0:02:55]} Rxb6 {[%emt 0:00:21]} 62. Kf3 {[%emt 0:00:19]} Kd5 {[%emt 0:00:20]} 63. a5 0-1

[Event "Germany Countries-chT Youth 2022"]
[Site "Wiesbaden"]
[Date "2022.10.03"]
[Round "6"]
[White "Pohle, Saskia"]
[Black "Glowiak, Alexandra"]
[Result "0-1"]
[ECO "C97"]
[WhiteElo "1756"]
[BlackElo "1602"]
[Annotator "NA RC COMBH"]
[PlyCount "102"]
[EventDate "2022.09.28"]
[EventType "team-tourn"]
[EventRounds "7"]
[EventCountry "GER"]
[SourceTitle "playchess.com"]
[Source "ChessBase"]
[SourceQuality "1"]
[TimeControl "40/5400+30:1800+30"]

1. e4 {[%emt 0:00:01]} e5 {[%emt 0:00:05]} 2. Nf3 {[%emt 0:00:04]} Nc6 {[%emt 0:00:08]} 3. Bb5 {[%emt 0:00:05]} a6 {[%emt 0:00:06]} 4. Ba4 {[%emt 0:00:04]} Nf6 {[%emt 0:00:12]} 5. O-O {[%emt 0:00:10]} b5 {[%emt 0:00:13]} 6. Bb3 {[%emt 0:00:06]} Be7 {[%emt 0:00:16]} 7. Re1 {[%emt 0:00:06]} d6 {[%emt 0:00:26]} 8. c3 {[%emt 0:00:39]} Na5 {[%emt 0:05:19]} 9. Bc2 {[%emt 0:00:11]} c5 {[%emt 0:00:37]} 10. h3 {[%emt 0:02:13]} O-O {[%emt 0:01:15]} 11. d4 {[%emt 0:01:56]} Qc7 {[%emt 0:02:29]} 12. Nbd2 {[%emt 0:00:23]} Bd7 {[%emt 0:02:48]} 13. Nf1 {[%emt 0:01:35]} Rfe8 {[%emt 0:06:31]} 14. Ng3 {[%emt 0:01:14]} g6 {[%emt 0:09:49]} 15. Bg5 {[%emt 0:05:07]} Kg7 16. dxe5 {[%emt 0:07:52]} dxe5 {[%emt 0:08:40]} 17. Nxe5 Bxh3 {[%emt 0:12:09]} 18. gxh3 {[%emt 0:09:14]} Qxe5 {[%emt 0:00:17]} 19. f4 {[%emt 0:06:23]} Qc7 {[%emt 0:01:22]} 20. Bxf6+ {[%emt 0:07:21]} Bxf6 {[%emt 0:01:22]} 21. Qg4 {[%emt 0:00:11]} Kh8 {[%emt 0:09:42]} 22. Re2 {[%emt 0:05:22]} Rg8 {[%emt 0:03:30]} 23. e5 {[%emt 0:02:37]} Be7 {[%emt 0:10:25]} 24. Kh2 {[%emt 0:08:30]} Nc6 {[%emt 0:03:00]} 25. Rg1 {[%emt 0:03:45]} Raf8 {[%emt 0:10:14]} 26. Nf5 {[%emt 0:08:59]} gxf5 {[%emt 0:02:02]} 27. Qxf5 {[%emt 0:00:13]} Rg6 {[%emt 0:00:21]} 28. Qh5 {[%emt 0:01:34]} Rfg8 {[%emt 0:02:32]} 29. Bxg6 {[%emt 0:01:24]} fxg6 {[%emt 0:01:19]} 30. Reg2 {[%emt 0:01:54]} Bf8 {[%emt 0:03:24]} 31. Qg4 {[%emt 0:04:30]} Ne7 {[%emt 0:01:26]} 32. Qe6 {[%emt 0:01:51]} Qc8 {[%emt 0:02:11]} 33. Qf6+ {[%emt 0:02:32]} Rg7 {[%emt 0:00:33]} 34. Rd1 {[%emt 0:07:24]} Kg8 {[%emt 0:01:12]} 35. Qg5 {[%emt 0:04:37]} Qf5 {[%emt 0:00:34]} 36. Rd6 {[%emt 0:02:10]} Qxg5 {[%emt 0:00:37]} 37. fxg5 {[%emt 0:00:23]} a5 {[%emt 0:00:39]} 38. Ra6 {[%emt 0:00:29]} Nf5 {[%emt 0:00:46]} 39. Rxa5 {[%emt 0:00:30]} b4 {[%emt 0:00:11]} 40. cxb4 {[%emt 0:01:32]} cxb4 {[%emt 0:00:10]} 41. Ra8 {[%emt 0:33:39]} Re7 {[%emt 0:02:51]} 42. Rg4 {[%emt 0:00:00]} Rb7 {[%emt 0:10:17]} 43. Rc4 {[%emt 0:00:00]} Kf7 {[%emt 0:00:46]} 44. e6+ {[%emt 0:00:00]} Ke7 {[%emt 0:01:18]} 45. Rcc8 {[%emt 0:00:00]} Bg7 {[%emt 0:00:27]} 46. Re8+ {[%emt 0:00:00]} Kd6 {[%emt 0:00:08]} 47. Rad8+ {[%emt 0:00:00]} Kc6 {[%emt 0:01:13]} 48. Rc8+ {[%emt 0:00:00]} Rc7 {[%emt 0:02:21]} 49. Rb8 {[%emt 0:00:00]} Bxb2 {[%emt 0:02:33]} 50. Rxb4 {[%emt 0:00:00]} Be5+ {[%emt 0:06:52]} 51. Kg2 {[%emt 0:00:00]} Bg3 {[%emt 0:00:00]} 0-1